fUST/lending_fUST_20250708
["ID","MTS","AMOUNT","RATE_DAILY","PERIOD"]
[370325661,1751958640824,-460.0,0.00019178,2]
[370325663,1751958640834,-460.0,0.00019178,2]
[370325665,1751958640844,-249.61124039,0.00019178,2]
[370325667,1751958640854,-462.36270853,0.00019178,2]
[370325668,1751958640864,-151.0,0.00019178,2]
[370325669,1751958640873,-151.0,0.00019178,2]
[370325670,1751958640884,-151.0,0.00019178,2]
[370325671,1751958640894,-281.470706,0.00019178,2]
[370325672,1751958640902,-460.0,0.00019178,2]
[370325673,1751958640911,-460.0,0.00019178,2]
[370325674,1751958640920,-460.0,0.00019178,2]
[370325675,1751958640929,-460.0,0.00019178,2]
[370325676,1751958640939,-460.0,0.00019178,2]
[370325677,1751958640948,-460.0,0.00019178,2]
[370325678,1751958640958,-575.15,0.00019178,2]
[370325679,1751958640968,-460.0,0.00019178,2]
[370325680,1751958640978,-426.97135607,0.00019178,2]
[370325681,1751958640987,-460.0,0.00019178,2]
[370325682,1751958640996,-460.0,0.00019178,2]
[370325683,1751958641006,-151.0,0.00019178,2]
[370325684,1751958641015,-460.0,0.00019178,2]
[370325685,1751958641024,-460.0,0.00019178,2]
[370325686,1751958641034,-460.0,0.00019178,2]
[370325687,1751958641043,-460.0,0.00019178,2]
[370325688,1751958641053,-460.0,0.00019178,2]
[370325689,1751958641062,-460.0,0.00019178,2]
[370325690,1751958641072,-460.0,0.00019178,2]
[370325691,1751958641081,-418.33361715,0.00019178,2]
[370325692,1751958641090,-460.0,0.00019178,2]
[370325693,1751958641100,-2379.69,0.00019178,2]
[370325694,1751958641109,-151.0,0.00019178,2]
[370325695,1751958641119,-460.0,0.00019178,2]
[370325696,1751958641128,-460.0,0.00019178,2]
[370325697,1751958641137,-264.737519,0.00019178,2]
[370325698,1751958641146,-872.31,0.00019178,2]
[370325699,1751958641155,-460.0,0.00019178,2]
[370325700,1751958641164,-460.0,0.00019178,2]
[370325701,1751958641174,-856.41,0.00019178,2]
[370325702,1751958641183,-460.0,0.00019178,2]
[370325703,1751958641193,-584.78,0.00019178,2]
[370325704,1751958641203,-460.0,0.00019178,2]
[370325705,1751958641212,-883.42,0.00019178,2]
[370325706,1751958641221,-460.0,0.00019178,2]
[370325707,1751958641231,-151.0,0.00019178,2]
[370325708,1751958641240,-151.0,0.00019178,2]
[370325709,1751958641249,-460.0,0.00019178,2]
[370325710,1751958641259,-460.0,0.00019178,2]
[370325711,1751958641268,-374.30685836,0.00019178,2]
[370325712,1751958641277,-460.0,0.00019178,2]
[370325713,1751958641287,-460.0,0.00019178,2]
[370325714,1751958641296,-460.0,0.00019178,2]
[370325715,1751958641306,-460.0,0.00019178,2]
[370325716,1751958641315,-460.0,0.00019178,2]
[370325717,1751958641325,-154.213987,0.00019178,2]
[370325718,1751958641334,-460.0,0.00019178,2]
[370325719,1751958641344,-460.0,0.00019178,2]
[370325720,1751958641353,-460.0,0.00019178,2]
[370325721,1751958641362,-460.0,0.00019178,2]
[370325722,1751958641372,-606.1032804,0.00019178,2]
[370325723,1751958641381,-505.96233362,0.00019178,2]
[370325724,1751958641390,-1563.21,0.00019178,2]
[370325725,1751958641399,-460.0,0.00019178,2]
[370325726,1751958641409,-460.0,0.00019178,2]
[370325727,1751958641418,-460.0,0.00019178,2]
[370325728,1751958641427,-460.0,0.00019178,2]
[370325729,1751958641437,-460.0,0.00019178,2]
[370325730,1751958641446,-2083.39,0.00019178,2]
[370325731,1751958641455,-460.0,0.00019178,2]
[370325732,1751958641465,-460.0,0.00019178,2]
[370325733,1751958641474,-460.1719388,0.00019178,2]
[370325734,1751958641483,-460.0,0.00019178,2]
[370325735,1751958641492,-460.0,0.00019178,2]
[370325736,1751958641502,-460.0,0.00019178,2]
[370325737,1751958641511,-280.71965859,0.00019178,2]
[370325738,1751958641521,-460.0,0.00019178,2]
[370325739,1751958641531,-460.0,0.00019178,2]
[370325740,1751958641540,-460.0,0.00019178,2]
[370325741,1751958641550,-460.0,0.00019178,2]
[370325742,1751958641559,-514.3,0.00019178,2]
[370325743,1751958641569,-460.0,0.00019178,2]
[370325744,1751958641578,-460.0,0.00019178,2]
[370325745,1751958641588,-460.0,0.00019178,2]
[370325746,1751958641597,-460.0,0.00019178,2]
[370325747,1751958641606,-460.0,0.00019178,2]
[370325748,1751958641616,-460.0,0.00019178,2]
[370325749,1751958641626,-644.85,0.00019178,2]
[370325750,1751958641635,-460.0,0.00019178,2]
[370325751,1751958641644,-460.0,0.00019178,2]
[370325752,1751958641654,-460.0,0.00019178,2]
[370325753,1751958641663,-460.0,0.00019178,2]
[370325754,1751958641673,-460.0,0.00019178,2]
[370325755,1751958641682,-460.0,0.00019178,2]
[370325756,1751958641691,-460.0,0.00019178,2]
[370325757,1751958641700,-1106.39,0.00019178,2]
[370325758,1751958641711,-460.0,0.00019178,2]
[370325759,1751958641720,-460.0,0.00019178,2]
[370325760,1751958641729,-2031.21,0.00019178,2]
[370325761,1751958641739,-460.0,0.00019178,2]
[370325762,1751958641749,-460.0,0.00019178,2]
[370325763,1751958641758,-460.0,0.00019178,2]
[370325764,1751958641768,-460.0,0.00019178,2]
[370325765,1751958641777,-984.52,0.00019178,2]
[370325766,1751958641789,-1273.3,0.00019178,2]
[370325767,1751958641799,-822.83,0.00019178,2]
[370325768,1751958641809,-460.0,0.00019178,2]
[370325769,1751958641818,-460.0,0.00019178,2]
[370325770,1751958641827,-460.0,0.00019178,2]
[370325771,1751958641836,-460.0,0.00019178,2]
[370325772,1751958641846,-460.0,0.00019178,2]
[370325773,1751958641855,-460.0,0.00019178,2]
[370325774,1751958641864,-460.0,0.00019178,2]
[370325775,1751958641874,-460.0,0.00019178,2]
[370325776,1751958641883,-589.86,0.00019178,2]
[370325777,1751958641893,-1684.38,0.00019178,2]
[370325778,1751958641902,-460.0,0.00019178,2]
[370325779,1751958641912,-151.0,0.00019178,2]
[370325780,1751958641921,-1143.51,0.00019178,2]
[370325781,1751958641930,-151.0,0.00019178,2]
[370325782,1751958641939,-460.0,0.00019178,2]
[370325783,1751958641949,-460.0,0.00019178,2]
[370325784,1751958641959,-460.0,0.00019178,2]
[370325785,1751958641969,-460.0,0.00019178,2]
[370325786,1751958641979,-460.0,0.00019178,2]
[370325787,1751958641988,-151.0,0.00019178,2]
[370325788,1751958641998,-151.0,0.00019178,2]
[370325789,1751958642007,-906.63,0.00019178,2]
[370325790,1751958642016,-460.0,0.00019178,2]
[370325791,1751958642025,-460.0,0.00019178,2]
[370325792,1751958642035,-460.0,0.00019178,2]
[370325793,1751958642044,-460.0,0.00019178,2]
[370325794,1751958642053,-460.0,0.00019178,2]
[370325795,1751958642062,-845.59,0.00019178,2]
[370325796,1751958642071,-763.86,0.00019178,2]
[370325797,1751958642080,-460.0,0.00019178,2]
[370325798,1751958642090,-538.61554004,0.00019178,2]
[370325799,1751958642099,-460.0,0.00019178,2]
[370325800,1751958642108,-460.0,0.00019178,2]
[370325801,1751958642119,-460.0,0.00019178,2]
[370325802,1751958642128,-151.0,0.00019178,2]
[370325803,1751958642138,-785.51,0.00019178,2]
[370325804,1751958642147,-510.00000001,0.00019178,2]
[370325805,1751958642156,-460.0,0.00019178,2]
[370325806,1751958642166,-460.0,0.00019178,2]
[370325807,1751958642175,-559.12,0.00019178,2]
[370325808,1751958642184,-460.0,0.00019178,2]
[370325809,1751958642193,-460.0,0.00019178,2]
[370325810,1751958642203,-460.0,0.00019178,2]
[370325811,1751958642212,-1705.84,0.00019178,2]
[370325812,1751958642222,-460.0,0.00019178,2]
[370325813,1751958642231,-460.0,0.00019178,2]
[370325814,1751958642240,-460.0,0.00019178,2]
[370325815,1751958642249,-460.0,0.00019178,2]
[370325816,1751958642259,-460.0,0.00019178,2]
[370325817,1751958642268,-460.0,0.00019178,2]
[370325818,1751958642277,-465.41803378,0.00019178,2]
[370325819,1751958642286,-460.0,0.00019178,2]
[370325820,1751958642296,-460.0,0.00019178,2]
[370325821,1751958642305,-460.0,0.00019178,2]
[370325822,1751958642315,-460.0,0.00019178,2]
[370325823,1751958642325,-164.48501,0.000192,2]
[370325824,1751958642334,-160.0,0.00019334,3]
[370325825,1751958642343,-1633.79576716,0.00019383,2]
[370325826,1751958642354,-160.0,0.00019434,2]
[370325827,1751958642364,-160.0,0.00019434,2]
[370325828,1751958642374,-214.10276668,0.00019434,2]
[370325829,1751958642384,-160.0,0.00019436,2]
[370325830,1751958642395,-160.0,0.00019436,2]
[370325831,1751958642406,-230.51100374,0.00019436,2]
[370325832,1751958642415,-848.40570879,0.00019436,2]
[370325833,1751958642425,-837.89306043,0.00019436,2]
[370325834,1751958642436,-215.2437778,0.00019436,2]
[370325835,1751958642445,-263.006264,0.0001944,2]
[370325836,1751958642454,-473.01592562,0.00019452,2]
[370325837,1751958642464,-151.0,0.00019452,2]
[370325838,1751958642474,-151.0,0.00019452,2]
[370325839,1751958642483,-460.0,0.00019452,2]
[370325840,1751958642493,-460.0,0.00019452,2]
[370325842,1751958642502,-460.0,0.00019452,2]
[370325844,1751958642511,-460.0,0.00019452,2]
[370325846,1751958642521,-164.11512076,0.00019452,2]
[370325860,1751958643173,-460.0,0.00019178,2]
[370325862,1751958643183,-460.0,0.00019178,2]
[370325865,1751958643193,-295.88487924,0.00019452,2]
[370325867,1751958643202,-460.0,0.00019452,2]
[370325870,1751958643211,-460.0,0.00019452,2]
[370325872,1751958643221,-460.0,0.00019452,2]
[370325874,1751958643231,-460.0,0.00019452,2]
[370325875,1751958643240,-460.0,0.00019452,2]
[370325878,1751958643249,-192.24815527,0.00019452,2]
[370325881,1751958643258,-321.22124517,0.00019452,2]
[370325883,1751958643267,-151.0,0.00019452,2]
[370325884,1751958643276,-460.0,0.00019452,2]
[370325886,1751958643286,-460.0,0.00019452,2]
[370325887,1751958643295,-434.3380758,0.00019452,2]
[370325888,1751958643303,-2379.69,0.00019452,2]
[370325889,1751958643313,-294.7075428,0.00019452,2]
[370325890,1751958643323,-872.31,0.00019452,2]
[370325891,1751958643333,-460.0,0.00019452,2]
[370325892,1751958643343,-460.0,0.00019452,2]
[370325893,1751958643354,-856.41,0.00019452,2]
[370325894,1751958643365,-584.78,0.00019452,2]
[370325895,1751958643375,-883.42,0.00019452,2]
[370325896,1751958643384,-460.0,0.00019452,2]
[370325897,1751958643393,-460.0,0.00019452,2]
[370325898,1751958643402,-460.0,0.00019452,2]
[370325899,1751958643412,-460.0,0.00019452,2]
[370325900,1751958643422,-1563.21,0.00019452,2]
[370325901,1751958643432,-460.0,0.00019452,2]
[370325902,1751958643441,-460.0,0.00019452,2]
[370325903,1751958643450,-2083.39,0.00019452,2]
[370325904,1751958643459,-460.0,0.00019452,2]
[370325905,1751958643470,-460.0,0.00019452,2]
[370325906,1751958643479,-460.0,0.00019452,2]
[370325907,1751958643595,-460.0,0.00019452,2]
[370325908,1751958643608,-644.85,0.00019452,2]
[370325909,1751958643618,-460.0,0.00019452,2]
[370325910,1751958643628,-460.0,0.00019452,2]
[370325911,1751958643638,-460.0,0.00019452,2]
[370325912,1751958643647,-855.05152828,0.00019452,2]
[370325913,1751958643664,-251.33847172,0.00019452,2]
[370325914,1751958643674,-2031.21,0.00019452,2]
[370325915,1751958643683,-460.0,0.00019452,2]
[370325916,1751958643692,-984.52,0.00019452,2]
[370325917,1751958643701,-1273.3,0.00019452,2]
[370325918,1751958643710,-822.83,0.00019452,2]
[370325919,1751958643719,-460.0,0.00019452,2]
[370325920,1751958643729,-460.0,0.00019452,2]
[370325921,1751958643738,-460.0,0.00019452,2]
[370325922,1751958643747,-460.0,0.00019452,2]
[370325923,1751958643757,-257.73177954,0.00019452,2]
[370325924,1751958643766,-460.0,0.00019452,2]
[370325925,1751958643775,-589.86,0.00019452,2]
[370325926,1751958643785,-460.0,0.00019452,2]
[370325927,1751958643797,-1684.38,0.00019452,2]
[370325928,1751958643807,-1143.51,0.00019452,2]
[370325929,1751958643816,-460.0,0.00019452,2]
[370325930,1751958643825,-460.0,0.00019452,2]
[370325931,1751958643835,-906.63,0.00019452,2]
[370325932,1751958643845,-454.95635246,0.00019452,2]
[370325933,1751958643854,-845.59,0.00019452,2]
[370325934,1751958643864,-763.86,0.00019452,2]
[370325935,1751958643874,-460.0,0.00019452,2]
[370325936,1751958643883,-785.51,0.00019452,2]
[370325937,1751958643892,-460.0,0.00019452,2]
[370325938,1751958643902,-559.12,0.00019452,2]
[370325939,1751958643911,-460.0,0.00019452,2]
[370325940,1751958643920,-460.0,0.00019452,2]
[370325941,1751958643929,-1705.84,0.00019452,2]
[370325942,1751958643939,-220.11,0.00019452,2]
[370325943,1751958643948,-460.0,0.00019452,2]
[370325944,1751958643957,-460.0,0.00019452,2]
[370325945,1751958643966,-460.0,0.00019452,2]
[370325946,1751958643976,-1633.79576716,0.00019624,2]
[370325947,1751958643985,-500.0,0.00019678,2]
[370325948,1751958643994,-500.0,0.00019678,2]
[370325949,1751958644003,-151.0,0.00019726,2]
[370325950,1751958644013,-260.813949,0.00019726,2]
[370325951,1751958644022,-151.0,0.00019726,2]
[370325952,1751958644032,-460.0,0.00019726,2]
[370325953,1751958644041,-151.0,0.00019726,2]
[370325954,1751958644051,-460.0,0.00019726,2]
[370325955,1751958644060,-460.0,0.00019726,2]
[370325956,1751958644070,-460.0,0.00019726,2]
[370325957,1751958644079,-460.0,0.00019726,2]
[370325958,1751958644089,-460.0,0.00019726,2]
[370325959,1751958644099,-460.0,0.00019726,2]
[370325960,1751958644108,-460.0,0.00019726,2]
[370325961,1751958644117,-151.0,0.00019726,2]
[370325962,1751958644127,-151.0,0.00019726,2]
[370325963,1751958644136,-151.0,0.00019726,2]
[370325964,1751958644146,-460.0,0.00019726,2]
[370325965,1751958644155,-460.0,0.00019726,2]
[370325966,1751958644164,-2379.69,0.00019726,2]
[370325967,1751958644173,-872.31,0.00019726,2]
[370325968,1751958644184,-460.0,0.00019726,2]
[370325969,1751958644193,-856.41,0.00019726,2]
[370325970,1751958644203,-584.78,0.00019726,2]
[370325971,1751958644212,-883.42,0.00019726,2]
[370325972,1751958644221,-460.0,0.00019726,2]
[370325973,1751958644231,-368.53824345,0.00019726,2]
[370325974,1751958644243,-91.46175655,0.00019726,2]
[370325975,1751958644253,-460.0,0.00019726,2]
[370325976,1751958644262,-460.0,0.00019726,2]
[370325977,1751958644271,-1563.21,0.00019726,2]
[370325978,1751958644280,-460.0,0.00019726,2]
[370325979,1751958644290,-460.0,0.00019726,2]
[370325980,1751958644300,-2083.39,0.00019726,2]
[370325981,1751958644310,-355.76,0.00019726,2]
[370325982,1751958644319,-460.0,0.00019726,2]
[370325983,1751958644329,-460.0,0.00019726,2]
[370325984,1751958644338,-460.0,0.00019726,2]
[370325985,1751958644348,-644.85,0.00019726,2]
[370325986,1751958644357,-460.0,0.00019726,2]
[370325987,1751958644367,-62.71743142,0.00019726,2]
[370325988,1751958644382,-397.28256858,0.00019726,2]
[370325989,1751958644391,-460.0,0.00019726,2]
[370325990,1751958644400,-1106.39,0.00019726,2]
[370325991,1751958644410,-2031.21,0.00019726,2]
[370325992,1751958644419,-460.0,0.00019726,2]
[370325993,1751958644429,-785.02129618,0.00019726,2]
[370325994,1751958644445,-199.49870382,0.00019726,2]
[370325995,1751958644454,-1273.3,0.00019726,2]
[370325996,1751958644465,-822.83,0.00019726,2]
[370325997,1751958644474,-460.0,0.00019726,2]
[370325998,1751958644483,-460.0,0.00019726,2]
[370325999,1751958644492,-460.0,0.00019726,2]
[370326000,1751958644502,-460.0,0.00019726,2]
[370326001,1751958644511,-589.86,0.00019726,2]
[370326002,1751958644521,-460.0,0.00019726,2]
[370326003,1751958644530,-1684.38,0.00019726,2]
[370326004,1751958644540,-1143.51,0.00019726,2]
[370326005,1751958644549,-460.0,0.00019726,2]
[370326006,1751958644558,-460.0,0.00019726,2]
[370326007,1751958644568,-906.63,0.00019726,2]
[370326008,1751958644578,-845.59,0.00019726,2]
[370326009,1751958644588,-763.86,0.00019726,2]
[370326010,1751958644598,-460.0,0.00019726,2]
[370326011,1751958644607,-785.51,0.00019726,2]
[370326012,1751958644620,-460.0,0.00019726,2]
[370326013,1751958644629,-559.12,0.00019726,2]
[370326014,1751958644639,-460.0,0.00019726,2]
[370326015,1751958644648,-1705.84,0.00019726,2]
[370326016,1751958644657,-460.0,0.00019726,2]
[370326017,1751958644667,-460.0,0.00019726,2]
[370326018,1751958644676,-460.0,0.00019726,2]
[370326019,1751958644686,-340.403,0.00019734,2]
[370326020,1751958644695,-150.0,0.00019765,2]
[370326021,1751958644705,-323.77614156,0.00019784,2]
[370326022,1751958644715,-500.0,0.00019814,2]
[370326023,1751958644724,-967.0,0.00019825,2]
[370326024,1751958644733,-646.0,0.00019825,2]
[370326025,1751958644744,-2153.0,0.00019825,2]
[370326026,1751958644753,-1633.79576716,0.00019866,2]
[370326027,1751958644765,-161.451181,0.00019899,3]
[370326028,1751958644774,-164.48501,0.00019899,3]
[370326029,1751958644783,-151.0,0.00019991,2]
[370326030,1751958644796,-5057.88639709,0.00019999,2]
[370326053,1751958646003,-537.2,0.00019999,2]
[370326066,1751958646119,-3708.0603511,0.00019999,2]
[370326069,1751958646131,-1570.81744969,0.00019999,2]
[370326072,1751958646154,-460.0,0.00019999,2]
[370326118,1751958714899,2047.68,0.00027,120]
[370326119,1751958834268,5000.0,0.000181,9]
[370326120,1751958849688,4525.02369875,0.000181,9]
[370326130,1751959442947,40747.8595205,0.00017818,2]
[370326132,1751959546009,1726.45264126,0.00018001,2]
[370326134,1751959564266,5000.0,0.00018001,2]
[370326135,1751959572729,1240.95216963,0.00018001,2]
[370326136,1751959580971,5000.0,0.00018001,2]
[370326137,1751959613232,-153.27367946,0.00018101,2]
[370326138,1751959625056,2717.3915204,0.00017819,2]
[370326140,1751959657550,24900.0,0.00017825,2]
[370326150,1751959830175,3146.46807214,0.00018001,2]
[370326175,1751959832477,-61.71779846,0.00018101,2]
[370326176,1751959832488,-171.81033411,0.00018309,2]
[370326177,1751959832498,-429.52583526,0.0001831,2]
[370326178,1751959832508,-214.76291763,0.00018603,2]
[370326179,1751959832518,-552.31146221,0.000188,2]
[370326180,1751959832528,-273.29955656,0.00018836,2]
[370326181,1751959832537,-151.34062779,0.00018865,2]
[370326182,1751959832547,-1200.0,0.00018874,2]
[370326183,1751959832560,-190.62466942,0.00018875,2]
[370326184,1751959832570,-590.76918278,0.00018875,2]
[370326185,1751959832580,-279.38591692,0.00018875,2]
[370326186,1751959832590,-300.0,0.00018875,2]
[370326187,1751959832601,-300.0,0.00018875,2]
[370326188,1751959832611,-300.0,0.00018875,2]
[370326189,1751959832621,-2149.17811488,0.00018876,2]
[370326190,1751959832633,-38750.10987705,0.00018876,2]
[370326191,1751959832656,-300.0,0.00018876,2]
[370326192,1751959832668,-739.77443514,0.00018876,2]
[370326198,1751959838452,-31865.4808549,0.00018876,2]
[370326199,1751959838533,-1918.09944354,0.00018876,2]
[370326243,1751959840633,-655.29682076,0.00018876,2]
[370326245,1751959840643,-345.57390245,0.000189,2]
[370326247,1751959840653,-302.57643837,0.00019,2]
[370326249,1751959840662,-207.4,0.00019082,2]
[370326251,1751959840671,-303.69331936,0.00019082,2]
[370326253,1751959840681,-151.0,0.00019082,2]
[370326255,1751959840690,-151.0,0.00019082,2]
[370326257,1751959840700,-151.0,0.00019082,2]
[370326259,1751959840709,-500.0,0.00019082,2]
[370326261,1751959840718,-151.0,0.00019082,2]
[370326263,1751959840728,-502.05492004,0.00019082,2]
[370326265,1751959840737,-151.0,0.00019082,2]
[370326267,1751959840746,-151.0,0.00019082,2]
[370326269,1751959840755,-151.0,0.00019082,2]
[370326271,1751959840764,-154.9325079,0.00019082,2]
[370326273,1751959840773,-151.0,0.00019082,2]
[370326275,1751959840783,-153.47862015,0.00019082,2]
[370326277,1751959840792,-500.0,0.00019082,2]
[370326279,1751959840801,-500.0,0.00019082,2]
[370326281,1751959840810,-500.0,0.00019082,2]
[370326283,1751959840819,-500.0,0.00019082,2]
[370326284,1751959840828,-500.0,0.00019082,2]
[370326287,1751959840838,-500.0,0.00019082,2]
[370326289,1751959840847,-22097.37324843,0.00019082,2]
[370326290,1751959840856,-151.0,0.00019178,2]
[370326293,1751959840866,-151.0,0.00019178,2]
[370326294,1751959840875,-151.0,0.00019178,2]
[370326296,1751959840885,-460.0,0.00019178,2]
[370326298,1751959840895,-460.0,0.00019178,2]
[370326301,1751959840905,-460.0,0.00019178,2]
[370326303,1751959840914,-460.0,0.00019178,2]
[370326305,1751959840923,-460.0,0.00019178,2]
[370326307,1751959840933,-460.0,0.00019178,2]
[370326309,1751959840943,-460.0,0.00019178,2]
[370326311,1751959840952,-460.0,0.00019178,2]
[370326313,1751959840961,-460.0,0.00019178,2]
[370326315,1751959840971,-460.0,0.00019178,2]
[370326317,1751959840980,-460.0,0.00019178,2]
[370326319,1751959840989,-460.0,0.00019178,2]
[370326321,1751959840998,-2082.23,0.00019178,2]
[370326323,1751959841008,-460.0,0.00019178,2]
[370326324,1751959841017,-754.17,0.00019178,2]
[370326327,1751959841027,-460.0,0.00019178,2]
[370326329,1751959841036,-763.28,0.00019178,2]
[370326330,1751959841046,-1492.61,0.00019178,2]
[370326332,1751959841056,-489.23,0.00019178,2]
[370326335,1751959841065,-159.45763695,0.00019178,2]
[370326337,1751959841074,-460.0,0.00019178,2]
[370326338,1751959841084,-1020.41504799,0.00019178,2]
[370326341,1751959841096,-347.39495201,0.00019178,2]
[370326343,1751959841106,-687.32,0.00019178,2]
[370326345,1751959841116,-1822.97,0.00019178,2]
[370326347,1751959841126,-460.0,0.00019178,2]
[370326348,1751959841135,-460.0,0.00019178,2]
[370326349,1751959841145,-460.0,0.00019178,2]
[370326350,1751959841154,-460.0,0.00019178,2]
[370326351,1751959841164,-460.0,0.00019178,2]
[370326352,1751959841174,-968.09,0.00019178,2]
[370326353,1751959841184,-1114.13,0.00019178,2]
[370326354,1751959841193,-460.0,0.00019178,2]
[370326355,1751959841203,-460.0,0.00019178,2]
[370326356,1751959841213,-1473.83,0.00019178,2]
[370326357,1751959841222,-460.0,0.00019178,2]
[370326358,1751959841232,-861.46,0.00019178,2]
[370326359,1751959841241,-511.68,0.00019178,2]
[370326360,1751959841250,-460.0,0.00019178,2]
[370326361,1751959841259,-460.0,0.00019178,2]
[370326362,1751959841269,-460.0,0.00019178,2]
[370326363,1751959841278,-590.39,0.00019178,2]
[370326364,1751959841288,-460.0,0.00019178,2]
[370326365,1751959841297,-460.0,0.00019178,2]
[370326366,1751959841308,-598.74944541,0.00019178,2]
[370326367,1751959841318,-739.89,0.00019178,2]
[370326368,1751959841328,-460.0,0.00019178,2]
[370326369,1751959841338,-460.0,0.00019178,2]
[370326370,1751959841347,-460.0,0.00019178,2]
[370326371,1751959841357,-1000.57,0.00019178,2]
[370326372,1751959841366,-719.98,0.00019178,2]
[370326373,1751959841375,-668.37,0.00019178,2]
[370326375,1751959841385,-460.0,0.00019178,2]
[370326377,1751959841394,-460.0,0.00019178,2]
[370326379,1751959841403,-1777.31,0.00019178,2]
[370326381,1751959841413,-460.0,0.00019178,2]
[370326383,1751959841422,-460.0,0.00019178,2]
[370326385,1751959841431,-460.0,0.00019178,2]
[370326387,1751959841441,-460.0,0.00019178,2]
[370326389,1751959841451,-772.99,0.00019178,2]
[370326391,1751959841460,-516.13,0.00019178,2]
[370326393,1751959841472,-460.0,0.00019178,2]
[370326395,1751959841482,-460.0,0.00019178,2]
[370326397,1751959841491,-269.24185154,0.00019334,2]
[370326399,1751959841501,-215.2437778,0.0001939,2]
[370326401,1751959841510,-160.0,0.0001939,2]
[370326403,1751959841519,-12586.7184932,0.0001939,2]
[370326405,1751959841529,-160.0,0.0001939,2]
[370326407,1751959841541,-230.51100374,0.0001939,2]
[370326409,1751959841550,-848.40570879,0.0001939,2]
[370326411,1751959841559,-837.89306043,0.0001939,2]
[370326413,1751959841569,-151.0,0.0001944,2]
[370326415,1751959841577,-381.19248081,0.00019451,2]
[370326416,1751959841587,-500.0,0.00019451,2]
[370326418,1751959841596,-500.0,0.00019451,2]
[370326420,1751959841605,-500.0,0.00019451,2]
[370326422,1751959841614,-500.0,0.00019451,2]
[370326424,1751959841623,-500.0,0.00019451,2]
[370326426,1751959841632,-500.0,0.00019451,2]
[370326428,1751959841641,-500.0,0.00019451,2]
[370326430,1751959841651,-500.0,0.00019451,2]
[370326432,1751959841660,-500.0,0.00019451,2]
[370326434,1751959841669,-500.0,0.00019451,2]
[370326436,1751959841680,-500.0,0.00019451,2]
[370326438,1751959841689,-500.0,0.00019451,2]
[370326440,1751959841698,-502.69869686,0.00019451,2]
[370326442,1751959841707,-151.0,0.00019452,2]
[370326444,1751959841717,-460.0,0.00019452,2]
[370326446,1751959841726,-460.0,0.00019452,2]
[370326448,1751959841736,-460.0,0.00019452,2]
[370326450,1751959841745,-460.0,0.00019452,2]
[370326452,1751959841754,-460.0,0.00019452,2]
[370326454,1751959841763,-460.0,0.00019452,2]
[370326456,1751959841773,-460.0,0.00019452,2]
[370326458,1751959841782,-460.0,0.00019452,2]
[370326460,1751959841791,-460.0,0.00019452,2]
[370326462,1751959841801,-460.0,0.00019452,2]
[370326464,1751959841810,-2082.23,0.00019452,2]
[370326465,1751959841819,-460.0,0.00019452,2]
[370326467,1751959841829,-754.17,0.00019452,2]